[Event "Kragero Resort A 2020"]
[Site "Kragero"]
[Date "2020.02.20"]
[Round "3.7"]
[White "Storme, Isak"]
[Black "Gharibyan, Mamikon"]
[Result "0-1"]
[ECO "E07"]
[WhiteElo "2314"]
[BlackElo "2405"]
[Annotator "RC"]
[PlyCount "76"]
[EventDate "2020.02.19"]
[EventType "swiss"]
[EventCountry "NOR"]
[SourceTitle "playchess.com"]
[Source "ChessBase"]
[SourceQuality "1"]
[TimeControl "5400+30"]

1. d4 {[%emt 0:00:00]} Nf6 {[%emt 0:00:00]} 2. c4 {[%emt 0:00:00]} e6 {[%emt 0:00:00]} 3. Nf3 {[%emt 0:00:00]} d5 {[%emt 0:02:08]} 4. g3 {[%emt 0:00:03]} Bb4+ {[%emt 0:00:52]} 5. Bd2 {[%emt 0:00:10]} Be7 {[%emt 0:00:42]} 6. Bg2 {[%emt 0:00:28]} O-O {[%emt 0:00:07]} 7. O-O {[%emt 0:00:28]} c6 {[%emt 0:00:30]} 8. Qb3 {[%emt 0:00:59]} Nbd7 {[%emt 0:03:19]} 9. Bf4 {[%emt 0:06:27]} Ne4 {[%emt 0:07:52]} 10. Nc3 {[%emt 0:09:21]} g5 {[%emt 0:02:44]} 11. Be3 {[%emt 0:00:49]} Nd6 {[%emt 0:06:06]} 12. cxd5 {[%emt 0:11:42]} exd5 {[%emt 0:00:56]} 13. Qc2 {[%emt 0:01:03]} Nb6 {[%emt 0:02:48]} 14. Qc1 {[%emt 0:02:40]} f6 {[%emt 0:02:54]} 15. h4 {[%emt 0:04:50]} h6 {[%emt 0:01:53]} 16. Bd2 {[%emt 0:06:30]} Bf5 {[%emt 0:03:41]} 17. Nh2 {[%emt 0:01:28]} Qd7 {[%emt 0:02:29]} 18. f3 {[%emt 0:01:56]} Bg6 {[%emt 0:12:57]} 19. e4 {[%emt 0:15:06]} dxe4 {[%emt 0:10:26]} 20. fxe4 {[%emt 0:01:19]} Ndc4 {[%emt 0:01:11]} 21. Be3 {[%emt 0:02:06]} Nxe3 {[%emt 0:02:20]} 22. Qxe3 {[%emt 0:00:06]} Nc4 {[%emt 0:00:14]} 23. Qf2 {[%emt 0:00:20]} f5 {[%emt 0:00:58]} 24. Kh1 {[%emt 0:03:42]} f4 {[%emt 0:07:03]} 25. hxg5 {[%emt 0:02:28]} hxg5 {[%emt 0:01:17]} 26. gxf4 {[%emt 0:02:46]} Rxf4 {[%emt 0:01:19]} 27. Qg3 {[%emt 0:01:20]} Rh4 {[%emt 0:07:04]} 28. Rad1 {[%emt 0:08:33]} Nxb2 {[%emt 0:01:09]} 29. Rd2 {[%emt 0:00:42]} Nc4 {[%emt 0:00:16]} 30. Rd3 {[%emt 0:00:08]} Bd6 {[%emt 0:04:08]} 31. e5 {[%emt 0:01:43]} Bxe5 {[%emt 0:00:53]} 32. dxe5 {[%emt 0:00:56]} Qxd3 {[%emt 0:00:09]} 33. Qxg5 {[%emt 0:00:29]} Rh5 {[%emt 0:00:07]} 34. Qg4 {[%emt 0:03:05]} Nxe5 {[%emt 0:00:25]} 35. Qe6+ {[%emt 0:02:30]} Bf7 {[%emt 0:00:07]} 36. Rxf7 {[%emt 0:01:21]} Nxf7 {[%emt 0:00:21]} 37. Ne4 {[%emt 0:00:13]} Qd1+ {[%emt 0:00:07]} 38. Bf1 {[%emt 0:00:07]} Qxf1# {[%emt 0:00:07]} 0-1

[Event "Kragero Resort A 2020"]
[Site "Kragero"]
[Date "2020.02.20"]
[Round "3.17"]
[White "Notkevich, Benjamin Arvola"]
[Black "Sjoberg, Isak"]
[Result "0-1"]
[ECO "E63"]
[WhiteElo "2495"]
[BlackElo "2218"]
[Annotator "RC"]
[PlyCount "128"]
[EventDate "2020.02.19"]
[EventType "swiss"]
[EventCountry "NOR"]
[SourceTitle "playchess.com"]
[Source "ChessBase"]
[SourceQuality "1"]
[TimeControl "5400+30"]

1. c4 {[%emt 0:00:00]} Nf6 {[%emt 0:00:00]} 2. g3 {[%emt 0:00:00]} g6 {[%emt 0:00:00]} 3. Bg2 {[%emt 0:00:00]} Bg7 {[%emt 0:00:22]} 4. Nc3 {[%emt 0:00:18]} O-O {[%emt 0:00:09]} 5. d4 {[%emt 0:00:14]} d6 {[%emt 0:01:03]} 6. Nf3 {[%emt 0:00:37]} Nc6 {[%emt 0:01:31]} 7. O-O {[%emt 0:01:24]} a6 {[%emt 0:00:08]} 8. h3 {[%emt 0:03:58]} Rb8 {[%emt 0:02:34]} 9. a3 {[%emt 0:04:46]} Na5 {[%emt 0:15:47]} 10. b3 {[%emt 0:01:37]} b5 {[%emt 0:02:34]} 11. cxb5 {[%emt 0:00:18]} axb5 {[%emt 0:00:06]} 12. Bd2 {[%emt 0:00:23]} c6 {[%emt 0:07:38]} 13. Qc2 {[%emt 0:01:28]} Qc7 {[%emt 0:08:42]} 14. Rfc1 {[%emt 0:03:53]} Re8 {[%emt 0:05:51]} 15. Bg5 {[%emt 0:05:52]} Be6 {[%emt 0:06:24]} 16. Nd2 {[%emt 0:00:22]} Qb6 {[%emt 0:03:41]} 17. e4 {[%emt 0:06:58]} Nd7 {[%emt 0:04:35]} 18. b4 {[%emt 0:06:01]} Nc4 {[%emt 0:00:54]} 19. d5 {[%emt 0:00:15]} cxd5 {[%emt 0:01:32]} 20. exd5 {[%emt 0:00:08]} Bf5 {[%emt 0:00:32]} 21. Nxc4 {[%emt 0:00:11]} bxc4 {[%emt 0:00:37]} 22. Qd2 {[%emt 0:01:28]} Ne5 {[%emt 0:02:37]} 23. g4 {[%emt 0:01:30]} Bd7 {[%emt 0:02:19]} 24. Be3 {[%emt 0:12:39]} Qa6 {[%emt 0:00:18]} 25. Rcb1 {[%emt 0:02:56]} f5 {[%emt 0:03:12]} 26. g5 {[%emt 0:16:06]} Nd3 {[%emt 0:00:11]} 27. f4 {[%emt 0:00:29]} e5 {[%emt 0:01:54]} 28. dxe6 {[%emt 0:00:57]} Bxe6 {[%emt 0:00:19]} 29. Ra2 {[%emt 0:00:22]} Bf7 {[%emt 0:02:40]} 30. Rc2 {[%emt 0:03:56]} Qxa3 {[%emt 0:04:37]} 31. Nd5 {[%emt 0:00:19]} Nxb4 {[%emt 0:02:07]} 32. Rxc4 {[%emt 0:03:10]} Nxd5 {[%emt 0:04:40]} 33. Rxb8 {[%emt 0:00:07]} Qxe3+ {[%emt 0:01:40]} 34. Qxe3 {[%emt 0:00:06]} Nxe3 {[%emt 0:00:03]} 35. Rxe8+ {[%emt 0:00:06]} Bxe8 {[%emt 0:00:04]} 36. Rc8 {[%emt 0:00:06]} Nxg2 {[%emt 0:00:24]} 37. Kxg2 {[%emt 0:00:04]} Kf8 {[%emt 0:00:34]} 38. Rc7 {[%emt 0:00:04]} Bf7 {[%emt 0:04:17]} 39. Kf3 {[%emt 0:00:34]} h6 {[%emt 0:00:29]} 40. h4 {[%emt 0:00:15]} h5 {[%emt 0:00:41]} 41. Ke3 {[%emt 0:00:16]} Bb2 {[%emt 0:00:23]} 42. Ra7 {[%emt 0:00:40]} Bc1+ {[%emt 0:00:12]} 43. Kf3 {[%emt 0:00:10]} Bd5+ {[%emt 0:00:25]} 44. Kg3 {[%emt 0:00:05]} Be3 {[%emt 0:00:25]} 45. Rc7 {[%emt 0:00:22]} Bb6 {[%emt 0:02:40]} 46. Rd7 {[%emt 0:00:10]} Bc5 {[%emt 0:00:06]} 47. Rc7 {[%emt 0:00:07]} Bb4 {[%emt 0:00:56]} 48. Rd7 {[%emt 0:00:34]} Be6 {[%emt 0:00:40]} 49. Rb7 {[%emt 0:00:37]} Be1+ {[%emt 0:00:19]} 50. Kh3 {[%emt 0:00:05]} Bf7 {[%emt 0:00:53]} 51. Rb1 {[%emt 0:01:16]} Bd2 {[%emt 0:00:52]} 52. Kg3 {[%emt 0:00:06]} d5 {[%emt 0:00:05]} 53. Rb8+ {[%emt 0:00:34]} Kg7 {[%emt 0:00:18]} 54. Rd8 {[%emt 0:00:16]} Be1+ {[%emt 0:00:06]} 55. Kh3 {[%emt 0:00:06]} Bf2 {[%emt 0:00:19]} 56. Rb8 {[%emt 0:00:24]} d4 {[%emt 0:00:59]} 57. Rd8 {[%emt 0:00:05]} Be6 {[%emt 0:00:49]} 58. Kg2 {[%emt 0:00:29]} Be3 {[%emt 0:00:50]} 59. Kf3 {[%emt 0:00:29]} Kf7 {[%emt 0:00:23]} 60. Rd6 {[%emt 0:00:38]} Ke7 {[%emt 0:00:13]} 61. Ra6 {[%emt 0:00:04]} Bd5+ {[%emt 0:00:22]} 62. Kg3 {[%emt 0:00:06]} d3 {[%emt 0:00:17]} 63. Ra3 {[%emt 0:00:06]} d2 {[%emt 0:00:20]} 64. Rxe3+ {[%emt 0:00:27]} Be4 {[%emt 0:00:05]} 0-1

[Event "Kragero Resort A 2020"]
[Site "Kragero"]
[Date "2020.02.20"]
[Round "3.21"]
[White "Kaasen, Tor Fredrik"]
[Black "Kvaloy, Aksel Bu"]
[Result "1/2-1/2"]
[ECO "B90"]
[WhiteElo "2393"]
[BlackElo "2174"]
[Annotator "RC"]
[PlyCount "98"]
[EventDate "2020.02.19"]
[EventType "swiss"]
[EventCountry "NOR"]
[SourceTitle "playchess.com"]
[Source "ChessBase"]
[SourceQuality "1"]
[TimeControl "5400+30"]

1. e4 {[%emt 0:03:06]} c5 {[%emt 0:00:00]} 2. Nf3 {[%emt 0:01:39]} d6 {[%emt 0:00:00]} 3. d4 {[%emt 0:00:20]} cxd4 {[%emt 0:00:00]} 4. Nxd4 {[%emt 0:00:15]} Nf6 {[%emt 0:00:02]} 5. Nc3 {[%emt 0:00:05]} a6 {[%emt 0:00:04]} 6. h3 {[%emt 0:00:17]} b5 {[%emt 0:00:16]} 7. a4 {[%emt 0:02:06]} b4 {[%emt 0:01:11]} 8. Nd5 {[%emt 0:01:54]} e6 {[%emt 0:00:37]} 9. Nxf6+ {[%emt 0:03:17]} Qxf6 {[%emt 0:00:09]} 10. g3 {[%emt 0:00:38]} Bb7 {[%emt 0:04:23]} 11. Bg2 {[%emt 0:00:37]} Nd7 {[%emt 0:03:19]} 12. O-O {[%emt 0:01:37]} Nc5 {[%emt 0:02:36]} 13. Re1 {[%emt 0:01:07]} e5 {[%emt 0:06:54]} 14. Nb3 {[%emt 0:06:47]} Nxb3 {[%emt 0:04:16]} 15. cxb3 {[%emt 0:00:11]} a5 {[%emt 0:04:44]} 16. Qd3 {[%emt 0:04:19]} Qe6 {[%emt 0:03:40]} 17. Qb5+ {[%emt 0:07:34]} Qd7 {[%emt 0:00:09]} 18. Be3 {[%emt 0:00:12]} Be7 {[%emt 0:17:36]} 19. Rec1 {[%emt 0:04:51]} Bd8 {[%emt 0:04:13]} 20. h4 {[%emt 0:03:11]} Ba6 {[%emt 0:01:38]} 21. Bf1 {[%emt 0:06:44]} Bxb5 {[%emt 0:05:14]} 22. Bxb5 {[%emt 0:00:10]} Ke7 {[%emt 0:00:37]} 23. Bxd7 {[%emt 0:00:21]} Kxd7 {[%emt 0:00:04]} 24. Rc4 {[%emt 0:00:35]} Be7 {[%emt 0:05:31]} 25. Rd1 {[%emt 0:06:24]} Rhc8 {[%emt 0:07:16]} 26. Rd5 {[%emt 0:02:16]} Bd8 {[%emt 0:01:45]} 27. Kf1 {[%emt 0:03:22]} Rc6 {[%emt 0:04:34]} 28. Ke2 {[%emt 0:02:00]} Rac8 {[%emt 0:08:06]} 29. Kd3 {[%emt 0:01:02]} Ke6 {[%emt 0:01:06]} 30. Rb5 {[%emt 0:01:26]} Kd7 {[%emt 0:01:21]} 31. h5 {[%emt 0:06:27]} h6 {[%emt 0:02:18]} 32. g4 {[%emt 0:03:11]} Ke6 {[%emt 0:02:46]} 33. Rb7 {[%emt 0:02:35]} R6c7 {[%emt 0:02:28]} 34. Ra7 {[%emt 0:02:44]} Rxc4 {[%emt 0:03:39]} 35. bxc4 {[%emt 0:00:17]} Rc6 {[%emt 0:02:06]} 36. Rb7 {[%emt 0:00:40]} Bc7 {[%emt 0:01:56]} 37. Rb5 {[%emt 0:01:11]} Kd7 {[%emt 0:00:59]} 38. Rd5 {[%emt 0:01:43]} Ke6 {[%emt 0:00:39]} 39. c5 {[%emt 0:02:40]} dxc5 {[%emt 0:00:12]} 40. Bxc5 {[%emt 0:00:44]} Bd6 {[%emt 0:00:34]} 41. Kc4 {[%emt 0:01:15]} Bxc5 {[%emt 0:00:50]} 42. Rxc5 {[%emt 0:00:06]} Kd6 {[%emt 0:00:24]} 43. Rxc6+ {[%emt 0:05:06]} Kxc6 {[%emt 0:00:07]} 44. b3 {[%emt 0:01:51]} g5 {[%emt 0:00:44]} 45. f3 {[%emt 0:01:05]} f6 {[%emt 0:00:06]} 46. Kd3 {[%emt 0:00:08]} Kc5 {[%emt 0:00:06]} 47. Ke3 {[%emt 0:00:05]} Kc6 {[%emt 0:00:24]} 48. Kd2 {[%emt 0:00:05]} Kd6 {[%emt 0:00:11]} 49. Kc2 {[%emt 0:00:06]} Kc6 {[%emt 0:00:09]} 1/2-1/2

[Event "Kragero Resort A 2020"]
[Site "Kragero"]
[Date "2020.02.20"]
[Round "3.23"]
[White "Kizatbay, Abyl"]
[Black "Stanford, Maxim Barth"]
[Result "1/2-1/2"]
[ECO "B31"]
[WhiteElo "2142"]
[BlackElo "2339"]
[Annotator "RC"]
[PlyCount "116"]
[EventDate "2020.02.19"]
[EventType "swiss"]
[EventCountry "NOR"]
[SourceTitle "playchess.com"]
[Source "ChessBase"]
[SourceQuality "1"]
[TimeControl "5400+30"]

1. e4 {[%emt 0:00:00]} c5 {[%emt 0:00:00]} 2. Nf3 {[%emt 0:00:00]} Nc6 {[%emt 0:00:00]} 3. Bb5 {[%emt 0:00:00]} g6 {[%emt 0:00:00]} 4. O-O {[%emt 0:00:00]} Bg7 {[%emt 0:00:00]} 5. c3 {[%emt 0:00:00]} Nf6 {[%emt 0:00:14]} 6. Re1 {[%emt 0:00:05]} O-O {[%emt 0:00:29]} 7. h3 {[%emt 0:00:11]} e5 {[%emt 0:06:03]} 8. Bxc6 {[%emt 0:12:30]} dxc6 {[%emt 0:00:52]} 9. Nxe5 {[%emt 0:10:19]} Re8 {[%emt 0:00:19]} 10. Nf3 {[%emt 0:16:19]} Rxe4 {[%emt 0:01:16]} 11. Rxe4 {[%emt 0:05:14]} Nxe4 {[%emt 0:00:05]} 12. d3 {[%emt 0:05:40]} c4 {[%emt 0:00:55]} 13. d4 {[%emt 0:00:36]} Be6 {[%emt 0:00:22]} 14. Nbd2 {[%emt 0:06:09]} Nxd2 {[%emt 0:03:20]} 15. Bxd2 {[%emt 0:03:49]} Qb6 {[%emt 0:04:22]} 16. Qc1 {[%emt 0:04:17]} Bd5 {[%emt 0:01:06]} 17. Ne5 {[%emt 0:04:44]} Re8 {[%emt 0:03:45]} 18. a4 {[%emt 0:10:10]} Qd8 {[%emt 0:06:05]} 19. Bf4 {[%emt 0:05:05]} f6 {[%emt 0:06:35]} 20. Ng4 {[%emt 0:00:56]} g5 {[%emt 0:00:39]} 21. Bh2 {[%emt 0:00:43]} f5 {[%emt 0:08:09]} 22. Ne3 {[%emt 0:01:24]} f4 {[%emt 0:01:33]} 23. Nxd5 {[%emt 0:01:41]} Qxd5 {[%emt 0:00:31]} 24. Qd2 {[%emt 0:00:44]} c5 {[%emt 0:01:37]} 25. Re1 {[%emt 0:02:07]} Rxe1+ {[%emt 0:03:41]} 26. Qxe1 {[%emt 0:00:02]} cxd4 {[%emt 0:00:09]} 27. cxd4 {[%emt 0:00:03]} Kf7 {[%emt 0:02:27]} 28. h4 {[%emt 0:00:11]} Qxd4 {[%emt 0:01:06]} 29. hxg5 {[%emt 0:00:59]} Qxb2 {[%emt 0:03:42]} 30. Bxf4 {[%emt 0:00:34]} Qa1 {[%emt 0:00:47]} 31. Bc1 {[%emt 0:06:20]} Bb2 {[%emt 0:01:39]} 32. Qe4 {[%emt 0:00:07]} Qxc1+ {[%emt 0:02:58]} 33. Kh2 {[%emt 0:00:06]} Qxg5 {[%emt 0:08:12]} 34. Qxb7+ {[%emt 0:00:44]} Kf6 {[%emt 0:00:06]} 35. Qc6+ {[%emt 0:00:42]} Kf5 {[%emt 0:00:31]} 36. Qc8+ {[%emt 0:01:30]} Kg6 {[%emt 0:00:31]} 37. Qxc4 {[%emt 0:00:53]} Qh6+ {[%emt 0:02:13]} 38. Kg3 {[%emt 0:00:03]} Be5+ {[%emt 0:00:22]} 39. Kf3 {[%emt 0:00:23]} Qh5+ {[%emt 0:00:36]} 40. g4 {[%emt 0:00:34]} Qh3+ {[%emt 0:01:20]} 41. Ke2 {[%emt 0:00:07]} Qc3 {[%emt 0:06:03]} 42. Qg8+ {[%emt 0:03:21]} Kf6 {[%emt 0:03:48]} 43. g5+ {[%emt 0:01:08]} Kf5 {[%emt 0:00:24]} 44. Qxh7+ {[%emt 0:00:23]} Kxg5 {[%emt 0:00:08]} 45. Qxa7 {[%emt 0:00:06]} Qc4+ {[%emt 0:00:14]} 46. Kf3 {[%emt 0:01:19]} Qg4+ {[%emt 0:00:43]} 47. Ke3 {[%emt 0:00:01]} Bf4+ {[%emt 0:00:22]} 48. Kd3 {[%emt 0:00:11]} Qd1+ {[%emt 0:01:49]} 49. Kc4 {[%emt 0:00:12]} Qe2+ {[%emt 0:00:55]} 50. Kd5 {[%emt 0:00:31]} Qe5+ {[%emt 0:00:35]} 51. Kc6 {[%emt 0:00:19]} Qd6+ {[%emt 0:01:13]} 52. Kb5 {[%emt 0:00:20]} Qd3+ {[%emt 0:01:15]} 53. Kc6 {[%emt 0:00:12]} Qd6+ {[%emt 0:02:20]} 54. Kb5 {[%emt 0:00:04]} Kg4 {[%emt 0:01:23]} 55. Qg7+ {[%emt 0:01:38]} Kf3 {[%emt 0:00:11]} 56. Qc3+ {[%emt 0:00:07]} Ke2 {[%emt 0:01:20]} 57. Qc4+ {[%emt 0:00:28]} Kxf2 {[%emt 0:03:41]} 58. Qc5+ {[%emt 0:00:04]} Qxc5+ {[%emt 0:00:00]} 1/2-1/2

[Event "Kragero Resort A 2020"]
[Site "Kragero"]
[Date "2020.02.20"]
[Round "4.1"]
[White "Miedema, David"]
[Black "Mirzoev, Emil"]
[Result "1-0"]
[ECO "C03"]
[WhiteElo "2368"]
[BlackElo "2452"]
[Annotator "ChessBase"]
[PlyCount "111"]
[EventDate "2020.02.19"]
[EventType "swiss"]
[EventCountry "NOR"]
[SourceTitle "playchess.com"]
[Source "ChessBase"]
[SourceQuality "1"]
[TimeControl "5400+30"]

1. e4 {[%emt 0:00:45]} e6 {[%emt 0:03:37]} 2. d4 {[%emt 0:00:00]} d5 {[%emt 0:00:53]} 3. Nd2 {[%emt 0:00:00]} Be7 {[%emt 0:01:12]} 4. Ngf3 {[%emt 0:00:00]} Nf6 {[%emt 0:00:07]} 5. Bd3 {[%emt 0:00:04]} c5 {[%emt 0:00:11]} 6. dxc5 {[%emt 0:00:06]} dxe4 {[%emt 0:02:35]} 7. Nxe4 {[%emt 0:00:08]} Nxe4 {[%emt 0:00:06]} 8. Bxe4 {[%emt 0:00:03]} Qxd1+ {[%emt 0:00:07]} 9. Kxd1 {[%emt 0:00:02]} Bxc5 {[%emt 0:00:07]} 10. Ke2 {[%emt 0:00:18]} Nd7 {[%emt 0:00:52]} 11. Be3 {[%emt 0:00:41]} Bxe3 {[%emt 0:02:35]} 12. Kxe3 {[%emt 0:00:04]} Nc5 {[%emt 0:01:25]} 13. Rhd1 {[%emt 0:00:59]} Nxe4 {[%emt 0:00:42]} 14. Kxe4 {[%emt 0:00:03]} b6 {[%emt 0:00:07]} 15. Ke3 {[%emt 0:02:26]} Bb7 {[%emt 0:01:39]} 16. Rd6 {[%emt 0:01:11]} Ke7 {[%emt 0:01:35]} 17. Rd2 {[%emt 0:00:11]} Rhd8 {[%emt 0:01:22]} 18. Rad1 {[%emt 0:00:04]} Rxd2 {[%emt 0:01:04]} 19. Rxd2 {[%emt 0:00:04]} f6 {[%emt 0:00:15]} 20. Ne1 {[%emt 0:02:21]} e5 {[%emt 0:01:30]} 21. h4 {[%emt 0:01:43]} Rc8 {[%emt 0:02:05]} 22. g3 {[%emt 0:01:10]} Rc4 {[%emt 0:01:18]} 23. f3 {[%emt 0:00:06]} h5 {[%emt 0:01:36]} 24. b3 {[%emt 0:00:32]} Rc3+ {[%emt 0:00:16]} 25. Rd3 {[%emt 0:00:04]} Rc8 {[%emt 0:00:52]} 26. c4 {[%emt 0:01:14]} g5 {[%emt 0:08:30]} 27. hxg5 {[%emt 0:02:08]} fxg5 {[%emt 0:00:01]} 28. Rd2 {[%emt 0:00:10]} h4 {[%emt 0:00:28]} 29. Rh2 {[%emt 0:00:50]} Rh8 {[%emt 0:01:00]} 30. Ng2 {[%emt 0:01:06]} h3 {[%emt 0:17:05]} 31. Ne1 {[%emt 0:01:57]} e4 {[%emt 0:05:24]} 32. fxe4 {[%emt 0:01:15]} g4 {[%emt 0:00:31]} 33. Nd3 {[%emt 0:00:05]} Kd6 {[%emt 0:12:23]} 34. Rh1 {[%emt 0:05:39]} Rf8 {[%emt 0:05:35]} 35. Nf4 {[%emt 0:00:19]} Re8 {[%emt 0:00:54]} 36. Rd1+ {[%emt 0:00:14]} Kc7 {[%emt 0:01:37]} 37. Nd5+ {[%emt 0:00:12]} Bxd5 {[%emt 0:00:42]} 38. cxd5 {[%emt 0:00:13]} Rf8 {[%emt 0:00:03]} 39. e5 {[%emt 0:01:01]} Rf3+ {[%emt 0:00:22]} 40. Ke4 {[%emt 0:00:14]} Rxg3 {[%emt 0:00:06]} 41. d6+ {[%emt 0:00:04]} Kd8 {[%emt 0:01:04]} 42. e6 {[%emt 0:00:16]} Rg2 {[%emt 0:02:18]} 43. Ke3 {[%emt 0:02:42]} Rg3+ {[%emt 0:01:06]} 44. Ke4 {[%emt 0:02:24]} Rg2 {[%emt 0:00:02]} 45. Rf1 {[%emt 0:00:08]} Re2+ {[%emt 0:00:45]} 46. Kd5 {[%emt 0:00:09]} Kc8 {[%emt 0:02:53]} 47. d7+ {[%emt 0:02:31]} Kc7 {[%emt 0:00:02]} 48. Rc1+ {[%emt 0:00:04]} Kb7 {[%emt 0:00:02]} 49. Kd6 {[%emt 0:00:07]} Rd2+ {[%emt 0:01:40]} 50. Ke7 {[%emt 0:00:18]} h2 {[%emt 0:00:18]} 51. d8=Q {[%emt 0:00:16]} Rxd8 {[%emt 0:00:03]} 52. Kxd8 {[%emt 0:00:05]} g3 {[%emt 0:00:02]} 53. e7 {[%emt 0:00:05]} g2 {[%emt 0:00:05]} 54. e8=Q {[%emt 0:00:06]} g1=Q {[%emt 0:00:06]} 55. Qd7+ {[%emt 0:00:22]} Ka6 {[%emt 0:00:05]} 56. Qa4+ {[%emt 0:00:03]} 1-0

[Event "Kragero Resort A 2020"]
[Site "Kragero"]
[Date "2020.02.20"]
[Round "4.7"]
[White "Shehzad, Shazil"]
[Black "Seo, Jung Min"]
[Result "1/2-1/2"]
[ECO "C56"]
[WhiteElo "2144"]
[BlackElo "2424"]
[Annotator "NA"]
[PlyCount "104"]
[EventDate "2020.02.19"]
[EventType "swiss"]
[EventCountry "NOR"]
[SourceTitle "playchess.com"]
[Source "ChessBase"]
[SourceQuality "1"]
[TimeControl "5400+30"]

1. e4 {[%emt 0:01:27]} e5 {[%emt 0:00:00]} 2. Nf3 {[%emt 0:00:47]} Nc6 {[%emt 0:00:00]} 3. d4 {[%emt 0:00:22]} exd4 {[%emt 0:00:08]} 4. Bc4 {[%emt 0:00:07]} Nf6 {[%emt 0:00:33]} 5. e5 {[%emt 0:00:09]} d5 {[%emt 0:00:04]} 6. Bb5 {[%emt 0:00:09]} Nd7 {[%emt 0:10:56]} 7. O-O {[%emt 0:01:53]} Be7 {[%emt 0:01:40]} 8. Bxc6 {[%emt 0:00:07]} bxc6 {[%emt 0:00:01]} 9. Nxd4 {[%emt 0:00:13]} Nb8 {[%emt 0:00:04]} 10. c4 {[%emt 0:00:50]} O-O {[%emt 0:00:39]} 11. Nd2 {[%emt 0:05:09]} c5 {[%emt 0:01:33]} 12. N4f3 {[%emt 0:01:20]} c6 {[%emt 0:02:21]} 13. Qc2 {[%emt 0:01:50]} Be6 {[%emt 0:00:20]} 14. Re1 {[%emt 0:00:47]} Nd7 {[%emt 0:01:00]} 15. b3 {[%emt 0:01:13]} a5 {[%emt 0:00:17]} 16. a4 {[%emt 0:00:39]} Nb8 {[%emt 0:01:13]} 17. Ba3 {[%emt 0:04:00]} Na6 {[%emt 0:00:09]} 18. Rad1 {[%emt 0:01:47]} Qb6 {[%emt 0:00:55]} 19. Nf1 {[%emt 0:04:49]} Rab8 {[%emt 0:01:26]} 20. Rb1 {[%emt 0:00:32]} Nb4 {[%emt 0:01:04]} 21. Bxb4 {[%emt 0:01:04]} Qxb4 {[%emt 0:00:11]} 22. N3d2 {[%emt 0:02:31]} g6 {[%emt 0:01:25]} 23. Qd1 {[%emt 0:02:13]} Rfd8 {[%emt 0:01:08]} 24. Qe2 {[%emt 0:00:50]} Rd7 {[%emt 0:02:49]} 25. f4 {[%emt 0:02:51]} Rbd8 {[%emt 0:01:59]} 26. Ne3 {[%emt 0:03:54]} dxc4 {[%emt 0:03:24]} 27. Ndxc4 {[%emt 0:01:07]} Rd3 {[%emt 0:00:41]} 28. Qc2 {[%emt 0:04:42]} Rc3 {[%emt 0:06:54]} 29. Qa2 {[%emt 0:03:04]} Rcd3 {[%emt 0:00:28]} 30. Qc2 {[%emt 0:00:37]} Bh4 {[%emt 0:05:14]} 31. Red1 {[%emt 0:02:48]} R3d4 {[%emt 0:03:58]} 32. g3 {[%emt 0:01:30]} Be7 {[%emt 0:00:05]} 33. Rf1 {[%emt 0:01:50]} Bd5 {[%emt 0:03:31]} 34. Rb2 {[%emt 0:01:46]} Be4 {[%emt 0:01:01]} 35. Qc1 {[%emt 0:02:18]} Rd3 {[%emt 0:00:38]} 36. Nc2 {[%emt 0:05:07]} Qc3 {[%emt 0:00:18]} 37. Qe1 {[%emt 0:00:48]} Bf5 {[%emt 0:02:22]} 38. Qxc3 {[%emt 0:01:32]} Rxc3 {[%emt 0:00:01]} 39. N2e3 {[%emt 0:00:41]} Bh3 {[%emt 0:00:21]} 40. Re1 {[%emt 0:00:53]} Rdd3 {[%emt 0:00:25]} 41. Kf2 {[%emt 0:01:23]} Rxb3 {[%emt 0:00:10]} 42. Rxb3 {[%emt 0:00:39]} Rxb3 {[%emt 0:00:02]} 43. Nxa5 {[%emt 0:00:50]} Ra3 {[%emt 0:01:41]} 44. Nxc6 {[%emt 0:01:47]} Bf8 {[%emt 0:00:02]} 45. g4 {[%emt 0:01:59]} c4 {[%emt 0:01:24]} 46. Nd4 {[%emt 0:05:43]} h5 {[%emt 0:01:33]} 47. gxh5 {[%emt 0:01:43]} gxh5 {[%emt 0:00:01]} 48. Rg1+ {[%emt 0:01:52]} Kh7 {[%emt 0:00:01]} 49. Rg5 {[%emt 0:00:41]} Bd7 {[%emt 0:00:07]} 50. Rxh5+ {[%emt 0:00:31]} Kg8 {[%emt 0:00:02]} 51. Rg5+ {[%emt 0:00:10]} Kh7 {[%emt 0:00:02]} 52. Rh5+ {[%emt 0:00:33]} Kg8 {[%emt 0:00:01]} 1/2-1/2

[Event "Kragero Resort A 2020"]
[Site "Kragero"]
[Date "2020.02.20"]
[Round "4.12"]
[White "Radeva, Viktoria"]
[Black "Vrolijk, Liam"]
[Result "1/2-1/2"]
[ECO "C55"]
[WhiteElo "2320"]
[BlackElo "2501"]
[Annotator "ChessBase"]
[PlyCount "52"]
[EventDate "2020.02.19"]
[EventType "swiss"]
[EventCountry "NOR"]
[SourceTitle "playchess.com"]
[Source "ChessBase"]
[SourceQuality "1"]
[TimeControl "5400+30"]

1. e4 {[%emt 0:01:23]} e5 {[%emt 0:00:09]} 2. Nf3 {[%emt 0:00:04]} Nc6 {[%emt 0:00:17]} 3. Bc4 {[%emt 0:00:12]} Nf6 {[%emt 0:00:16]} 4. d3 {[%emt 0:00:33]} Be7 {[%emt 0:00:53]} 5. O-O {[%emt 0:00:00]} O-O {[%emt 0:00:07]} 6. Re1 {[%emt 0:00:53]} d6 {[%emt 0:00:19]} 7. a4 {[%emt 0:00:12]} Kh8 {[%emt 0:02:30]} 8. h3 {[%emt 0:02:11]} Ng8 {[%emt 0:00:00]} 9. a5 {[%emt 0:01:03]} a6 {[%emt 0:00:25]} 10. Nc3 {[%emt 0:00:10]} f5 {[%emt 0:01:09]} 11. Nd5 {[%emt 0:00:11]} fxe4 {[%emt 0:04:00]} 12. dxe4 {[%emt 0:02:06]} Bf6 {[%emt 0:03:26]} 13. c3 {[%emt 0:03:26]} Nce7 {[%emt 0:06:51]} 14. Nxf6 {[%emt 0:04:03]} Nxf6 {[%emt 0:09:32]} 15. Bg5 {[%emt 0:19:40]} Qe8 {[%emt 0:00:00]} 16. Nh4 {[%emt 0:19:26]} h6 {[%emt 0:00:00]} 17. Bxf6 {[%emt 0:02:37]} Rxf6 {[%emt 0:00:00]} 18. Re3 {[%emt 0:01:39]} g5 {[%emt 0:00:09]} 19. Nf3 {[%emt 0:06:56]} Bd7 {[%emt 0:02:56]} 20. Nh2 {[%emt 0:01:48]} Rf4 {[%emt 0:01:54]} 21. g3 {[%emt 0:09:19]} Rf8 {[%emt 0:01:56]} 22. Bf1 {[%emt 0:00:18]} Qg6 {[%emt 0:01:52]} 23. Bg2 {[%emt 0:01:22]} Rf7 {[%emt 0:03:03]} 24. Rf3 {[%emt 0:04:45]} Raf8 {[%emt 0:00:55]} 25. Rxf7 {[%emt 0:00:06]} Qxf7 {[%emt 0:00:07]} 26. Qd2 {[%emt 0:00:17]} Kg7 {[%emt 0:00:52]} 1/2-1/2